[Event "White Rook U14 Final 2019"]
[Site "Sochi"]
[Date "2019.06.09"]
[Round "8.31"]
[White "Zhambalov, Bator"]
[Black "Moshkin, Aleksandr"]
[Result "1-0"]
[ECO "B08"]
[WhiteElo "1142"]
[BlackElo "1462"]
[Annotator "NA"]
[PlyCount "63"]
[EventDate "2019.06.02"]
[EventCountry "RUS"]
[SourceTitle "playchess.com"]
[Source "ChessBase"]
[SourceQuality "1"]
[TimeControl "5400+30"]

1. e4 {[%emt 0:00:00]} g6 {[%emt 0:00:07]} 2. d4 {[%emt 0:00:00]} Bg7 {[%emt 0:00:08]} 3. Nf3 {[%emt 0:00:09]} d6 {[%emt 0:00:00]} 4. Nc3 {[%emt 0:00:08]} Nf6 {[%emt 0:00:08]} 5. Be2 {[%emt 0:00:24]} O-O {[%emt 0:00:16]} 6. Bg5 {[%emt 0:00:40]} h6 {[%emt 0:00:08]} 7. Bf4 {[%emt 0:00:16]} Nbd7 {[%emt 0:00:16]} 8. Qd2 {[%emt 0:00:32]} Kh7 {[%emt 0:00:08]} 9. h4 {[%emt 0:00:56]} c5 {[%emt 0:00:57]} 10. d5 {[%emt 0:00:24]} a6 {[%emt 0:01:03]} 11. a4 {[%emt 0:00:17]} Qb6 {[%emt 0:00:16]} 12. O-O {[%emt 0:02:49]} Nh5 {[%emt 0:00:32]} 13. Rab1 {[%emt 0:09:14]} Nxf4 {[%emt 0:00:16]} 14. Qxf4 {[%emt 0:00:00]} Ne5 {[%emt 0:00:31]} 15. Nxe5 {[%emt 0:00:57]} Bxe5 {[%emt 0:00:08]} 16. Qd2 {[%emt 0:01:29]} Qb4 {[%emt 0:03:21]} 17. Bd3 {[%emt 0:04:32]} c4 {[%emt 0:18:03]} 18. Be2 {[%emt 0:00:24]} f5 {[%emt 0:08:16]} 19. f4 {[%emt 0:10:26]} Bf6 {[%emt 0:03:01]} 20. h5 {[%emt 0:02:28]} gxh5 {[%emt 0:09:54]} 21. Bxh5 {[%emt 0:00:23]} Qc5+ {[%emt 0:07:16]} 22. Kh1 {[%emt 0:01:39]} Rg8 {[%emt 0:12:32]} 23. g4 {[%emt 0:13:30]} Bxc3 {[%emt 0:14:53]} 24. bxc3 {[%emt 0:00:20]} fxe4 {[%emt 0:02:43]} 25. f5 {[%emt 0:00:35]} e3 {[%emt 0:00:54]} 26. Bg6+ {[%emt 0:00:54]} Kg7 {[%emt 0:01:05]} 27. Qg2 {[%emt 0:00:31]} b5 {[%emt 0:02:32]} 28. Qe4 {[%emt 0:02:44]} Kf6 {[%emt 0:01:36]} 29. Rbe1 {[%emt 0:01:07]} Bb7 {[%emt 0:00:24]} 30. Qe6+ {[%emt 0:00:19]} Kg7 {[%emt 0:00:43]} 31. Qf7+ {[%emt 0:00:13]} Kh8 {[%emt 0:00:06]} 32. Qh7# {[%emt 0:00:06]} 1-0

[Event "White Rook U14 Final 2019"]
[Site "Sochi"]
[Date "2019.06.09"]
[Round "8.32"]
[White "Shirokova, Sofiya"]
[Black "Sargaeva, Darima"]
[Result "0-1"]
[ECO "D79"]
[WhiteElo "1539"]
[BlackElo "1506"]
[Annotator "NA"]
[PlyCount "146"]
[EventDate "2019.06.02"]
[EventCountry "RUS"]
[SourceTitle "playchess.com"]
[Source "ChessBase"]
[SourceQuality "1"]
[TimeControl "5400+30"]

1. d4 {[%emt 0:00:00]} Nf6 {[%emt 0:00:00]} 2. Nf3 {[%emt 0:00:23]} c5 {[%emt 0:00:09]} 3. c3 {[%emt 0:00:56]} g6 {[%emt 0:02:25]} 4. g3 {[%emt 0:00:24]} Bg7 {[%emt 0:00:08]} 5. Bg2 {[%emt 0:00:08]} O-O {[%emt 0:00:16]} 6. O-O {[%emt 0:00:00]} cxd4 {[%emt 0:01:52]} 7. cxd4 {[%emt 0:01:37]} d5 {[%emt 0:00:56]} 8. Nc3 {[%emt 0:00:25]} Nc6 {[%emt 0:00:15]} 9. b3 {[%emt 0:01:13]} Bf5 {[%emt 0:03:36]} 10. Bb2 {[%emt 0:00:40]} Rc8 {[%emt 0:03:05]} 11. Ne5 {[%emt 0:01:20]} e6 {[%emt 0:05:05]} 12. Nxc6 {[%emt 0:02:57]} bxc6 {[%emt 0:00:55]} 13. Rc1 {[%emt 0:02:33]} Nd7 {[%emt 0:01:21]} 14. Ba3 {[%emt 0:01:04]} Re8 {[%emt 0:01:51]} 15. e4 {[%emt 0:03:12]} dxe4 {[%emt 0:01:20]} 16. Nxe4 {[%emt 0:04:41]} Bxe4 {[%emt 0:00:25]} 17. Bxe4 {[%emt 0:00:08]} Qb6 {[%emt 0:00:16]} 18. Bc5 {[%emt 0:00:48]} Nxc5 {[%emt 0:00:32]} 19. dxc5 {[%emt 0:00:00]} Qa5 {[%emt 0:00:24]} 20. Qf3 {[%emt 0:02:49]} Qa6 {[%emt 0:03:04]} 21. Rc4 {[%emt 0:00:48]} f5 {[%emt 0:05:05]} 22. Bb1 {[%emt 0:00:09]} Red8 {[%emt 0:00:48]} 23. Rd1 {[%emt 0:05:09]} Bf8 {[%emt 0:09:47]} 24. Qe2 {[%emt 0:05:04]} Rxd1+ {[%emt 0:03:31]} 25. Qxd1 {[%emt 0:00:08]} Rc7 {[%emt 0:00:16]} 26. f4 {[%emt 0:01:49]} Qb5 {[%emt 0:01:26]} 27. Qd4 {[%emt 0:01:19]} Qb8 {[%emt 0:04:51]} 28. b4 {[%emt 0:01:35]} Qc8 {[%emt 0:02:30]} 29. Qe3 {[%emt 0:01:04]} Kf7 {[%emt 0:01:20]} 30. Bc2 {[%emt 0:01:57]} Bg7 {[%emt 0:00:57]} 31. a4 {[%emt 0:04:57]} Qd7 {[%emt 0:00:28]} 32. Bb3 {[%emt 0:05:03]} a6 {[%emt 0:14:39]} 33. Kg2 {[%emt 0:04:55]} Rb7 {[%emt 0:01:47]} 34. h3 {[%emt 0:16:06]} Qd5+ {[%emt 0:01:50]} 35. Kh2 {[%emt 0:00:06]} Qd7 {[%emt 0:00:17]} 36. g4 {[%emt 0:00:56]} Bf6 {[%emt 0:02:53]} 37. Kg3 {[%emt 0:01:01]} Rb8 {[%emt 0:04:57]} 38. Ba2 {[%emt 0:07:45]} h6 {[%emt 0:01:47]} 39. Qe2 {[%emt 0:12:00]} Rb7 {[%emt 0:03:27]} 40. h4 {[%emt 0:01:15]} fxg4 {[%emt 0:01:24]} 41. Re4 {[%emt 0:00:10]} Kg7 {[%emt 0:03:10]} 42. Bxe6 {[%emt 0:00:40]} Qd8 {[%emt 0:00:07]} 43. Bxg4 {[%emt 0:00:10]} Bxh4+ {[%emt 0:00:22]} 44. Kh3 {[%emt 0:00:47]} Bf6 {[%emt 0:00:45]} 45. f5 {[%emt 0:00:47]} h5 {[%emt 0:03:30]} 46. Bf3 {[%emt 0:01:39]} Qd7 {[%emt 0:00:09]} 47. Re6 {[%emt 0:02:02]} Rxb4 {[%emt 0:01:22]} 48. Bxc6 {[%emt 0:01:43]} Rh4+ {[%emt 0:00:12]} 49. Kg2 {[%emt 0:00:12]} Qc7 {[%emt 0:03:53]} 50. Rd6 {[%emt 0:00:05]} Rg4+ {[%emt 0:00:35]} 51. Kf3 {[%emt 0:02:56]} Be7 {[%emt 0:00:57]} 52. Qe5+ {[%emt 0:00:22]} Kh7 {[%emt 0:07:18]} 53. fxg6+ {[%emt 0:00:06]} Kh6 {[%emt 0:00:13]} 54. g7+ {[%emt 0:00:19]} Bxd6 {[%emt 0:00:08]} 55. Qxd6+ {[%emt 0:03:05]} Qxd6 {[%emt 0:00:06]} 56. cxd6 {[%emt 0:00:05]} Kxg7 {[%emt 0:00:13]} 57. Be8 {[%emt 0:03:19]} Kh6 {[%emt 0:00:43]} 58. Ke3 {[%emt 0:00:25]} Rg1 {[%emt 0:01:01]} 59. Ke2 {[%emt 0:00:38]} Rg5 {[%emt 0:00:09]} 60. Bf7 {[%emt 0:00:18]} Rg4 {[%emt 0:01:56]} 61. Ke3 {[%emt 0:00:11]} Rg1 {[%emt 0:00:15]} 62. Ke2 {[%emt 0:00:07]} Rb1 {[%emt 0:00:14]} 63. Bc4 {[%emt 0:01:04]} Rb6 {[%emt 0:00:38]} 64. d7 {[%emt 0:01:10]} Rd6 {[%emt 0:00:04]} 65. Bxa6 {[%emt 0:00:14]} Rxd7 {[%emt 0:00:02]} 66. Bb5 {[%emt 0:00:23]} Rc7 {[%emt 0:00:59]} 67. Kf3 {[%emt 0:00:11]} Kg5 {[%emt 0:00:05]} 68. Kg3 {[%emt 0:00:10]} h4+ {[%emt 0:00:06]} 69. Kh3 {[%emt 0:00:03]} Rc3+ {[%emt 0:00:04]} 70. Kh2 {[%emt 0:00:06]} h3 {[%emt 0:00:17]} 71. Bf1 {[%emt 0:00:29]} Kh4 {[%emt 0:00:07]} 72. a5 {[%emt 0:00:16]} Rc2+ {[%emt 0:00:12]} 73. Kg1 {[%emt 0:00:42]} Kg3 {[%emt 0:00:16]} 0-1

[Event "White Rook U14 Final 2019"]
[Site "Sochi"]
[Date "2019.06.09"]
[Round "8.33"]
[White "Vatutin, Petr"]
[Black "Lotnik, Vladislav"]
[Result "1-0"]
[ECO "A94"]
[WhiteElo "1693"]
[BlackElo "1490"]
[Annotator "NA"]
[PlyCount "169"]
[EventDate "2019.06.02"]
[EventCountry "RUS"]
[SourceTitle "playchess.com"]
[Source "ChessBase"]
[SourceQuality "1"]
[TimeControl "5400+30"]

1. d4 {[%emt 0:00:00]} d5 {[%emt 0:00:00]} 2. c4 {[%emt 0:00:15]} e6 {[%emt 0:00:00]} 3. Nf3 {[%emt 0:00:17]} c6 {[%emt 0:00:08]} 4. g3 {[%emt 0:00:40]} f5 {[%emt 0:00:00]} 5. Bg2 {[%emt 0:00:47]} Nf6 {[%emt 0:00:25]} 6. O-O {[%emt 0:00:16]} Bd6 {[%emt 0:00:08]} 7. b3 {[%emt 0:00:16]} O-O {[%emt 0:01:12]} 8. Ba3 {[%emt 0:00:24]} Bxa3 {[%emt 0:00:25]} 9. Nxa3 {[%emt 0:00:00]} Bd7 {[%emt 0:00:16]} 10. Nc2 {[%emt 0:02:16]} Be8 {[%emt 0:00:16]} 11. Nce1 {[%emt 0:00:49]} Bh5 {[%emt 0:02:57]} 12. Ne5 {[%emt 0:01:03]} Nbd7 {[%emt 0:01:44]} 13. N1d3 {[%emt 0:01:05]} Nxe5 {[%emt 0:00:40]} 14. Nxe5 {[%emt 0:00:16]} Nd7 {[%emt 0:04:32]} 15. f4 {[%emt 0:02:18]} Nxe5 {[%emt 0:00:33]} 16. fxe5 {[%emt 0:00:47]} Qg5 {[%emt 0:00:57]} 17. Rf4 {[%emt 0:12:24]} Rfd8 {[%emt 0:11:23]} 18. Qd3 {[%emt 0:06:41]} Qe7 {[%emt 0:09:02]} 19. e3 {[%emt 0:03:31]} Qa3 {[%emt 0:02:45]} 20. Rf2 {[%emt 0:02:28]} a5 {[%emt 0:02:37]} 21. cxd5 {[%emt 0:04:17]} cxd5 {[%emt 0:03:00]} 22. Qb5 {[%emt 0:01:50]} a4 {[%emt 0:06:28]} 23. Rb1 {[%emt 0:01:54]} axb3 {[%emt 0:01:49]} 24. Rxb3 {[%emt 0:00:30]} Qc1+ {[%emt 0:00:29]} 25. Bf1 {[%emt 0:00:45]} Rab8 {[%emt 0:02:18]} 26. Rfb2 {[%emt 0:02:03]} Be8 {[%emt 0:05:25]} 27. Qd3 {[%emt 0:08:47]} Rdc8 {[%emt 0:14:27]} 28. Rb1 {[%emt 0:03:34]} Qc7 {[%emt 0:00:54]} 29. Rb6 {[%emt 0:02:37]} Bc6 {[%emt 0:02:34]} 30. Qb3 {[%emt 0:00:37]} Ra8 {[%emt 0:01:11]} 31. a3 {[%emt 0:04:59]} Ra7 {[%emt 0:02:51]} 32. Qb4 {[%emt 0:03:02]} Rca8 {[%emt 0:00:45]} 33. Rb3 {[%emt 0:01:46]} Kf7 {[%emt 0:07:26]} 34. Qc5 {[%emt 0:00:57]} Qe7 {[%emt 0:02:06]} 35. Qxe7+ {[%emt 0:04:14]} Kxe7 {[%emt 0:00:32]} 36. Bb5 {[%emt 0:00:42]} Rxa3 {[%emt 0:01:53]} 37. Bxc6 {[%emt 0:01:56]} Rxb3 {[%emt 0:00:05]} 38. Rxb3 {[%emt 0:00:26]} bxc6 {[%emt 0:00:27]} 39. Rb7+ {[%emt 0:00:22]} Kf8 {[%emt 0:00:18]} 40. Rc7 {[%emt 0:00:15]} Ra1+ {[%emt 0:00:49]} 41. Kf2 {[%emt 0:00:36]} Rc1 {[%emt 0:02:17]} 42. Rc8+ {[%emt 0:00:45]} Kf7 {[%emt 0:01:30]} 43. Rc7+ {[%emt 0:00:12]} Kf8 {[%emt 0:00:03]} 44. h4 {[%emt 0:01:01]} Rc2+ {[%emt 0:00:53]} 45. Kf3 {[%emt 0:00:11]} h6 {[%emt 0:04:13]} 46. g4 {[%emt 0:01:38]} fxg4+ {[%emt 0:00:29]} 47. Kxg4 {[%emt 0:00:00]} Rc3 {[%emt 0:01:58]} 48. Kf4 {[%emt 0:00:21]} Rc1 {[%emt 0:01:26]} 49. Rc8+ {[%emt 0:00:40]} Kf7 {[%emt 0:00:25]} 50. Rc7+ {[%emt 0:00:41]} Kg6 {[%emt 0:00:50]} 51. Re7 {[%emt 0:01:00]} Rf1+ {[%emt 0:00:09]} 52. Kg3 {[%emt 0:00:23]} Rg1+ {[%emt 0:00:46]} 53. Kf2 {[%emt 0:02:23]} Rg4 {[%emt 0:00:07]} 54. Rxe6+ {[%emt 0:00:56]} Kf5 {[%emt 0:01:46]} 55. Rxc6 {[%emt 0:00:38]} Rxh4 {[%emt 0:00:31]} 56. Rd6 {[%emt 0:00:35]} Rh2+ {[%emt 0:01:59]} 57. Kg3 {[%emt 0:00:45]} Ra2 {[%emt 0:00:42]} 58. Rxd5 {[%emt 0:03:17]} Ke4 {[%emt 0:00:22]} 59. Rd7 {[%emt 0:01:12]} Kxe3 {[%emt 0:00:08]} 60. e6 {[%emt 0:00:10]} Ra8 {[%emt 0:01:57]} 61. e7 {[%emt 0:00:20]} Re8 {[%emt 0:00:31]} 62. d5 {[%emt 0:00:11]} Ke4 {[%emt 0:00:36]} 63. d6 {[%emt 0:00:07]} Kf5 {[%emt 0:00:34]} 64. Rd8 {[%emt 0:00:10]} Ke6 {[%emt 0:00:05]} 65. Rxe8 {[%emt 0:00:18]} Kxd6 {[%emt 0:00:03]} 66. Rg8 {[%emt 0:00:07]} Kxe7 {[%emt 0:00:12]} 67. Rxg7+ {[%emt 0:00:03]} Kf6 {[%emt 0:00:07]} 68. Rg4 {[%emt 0:00:15]} h5 {[%emt 0:00:05]} 69. Rg8 {[%emt 0:00:07]} Kf7 {[%emt 0:00:07]} 70. Rg5 {[%emt 0:00:07]} h4+ {[%emt 0:00:56]} 71. Kxh4 {[%emt 0:00:04]} Kf6 {[%emt 0:00:05]} 72. Kg4 {[%emt 0:00:05]} Ke6 {[%emt 0:03:01]} 73. Rf5 {[%emt 0:00:08]} Kd6 {[%emt 0:00:27]} 74. Kf4 {[%emt 0:00:08]} Ke6 {[%emt 0:00:29]} 75. Ke4 {[%emt 0:00:03]} Kd6 {[%emt 0:00:26]} 76. Re5 {[%emt 0:00:05]} Kc6 {[%emt 0:00:31]} 77. Rd5 {[%emt 0:00:03]} Kc7 {[%emt 0:00:28]} 78. Kd4 {[%emt 0:00:08]} Kc6 {[%emt 0:00:27]} 79. Kc4 {[%emt 0:00:04]} Kb6 {[%emt 0:00:20]} 80. Rc5 {[%emt 0:00:12]} Ka6 {[%emt 0:00:29]} 81. Rb5 {[%emt 0:00:04]} Ka7 {[%emt 0:00:29]} 82. Kc5 {[%emt 0:00:04]} Ka6 {[%emt 0:00:30]} 83. Kc6 {[%emt 0:00:02]} Ka7 {[%emt 0:00:30]} 84. Kc7 {[%emt 0:00:04]} Ka6 {[%emt 0:00:30]} 85. Rc5 {[%emt 0:00:02]} 1-0

[Event "White Rook U14 Final 2019"]
[Site "Sochi"]
[Date "2019.06.09"]
[Round "8.34"]
[White "Kostornichenko, Yana"]
[Black "Masyukov, Egor"]
[Result "1-0"]
[ECO "C70"]
[WhiteElo "1706"]
[BlackElo "1645"]
[Annotator "NA"]
[PlyCount "69"]
[EventDate "2019.06.02"]
[EventCountry "RUS"]
[SourceTitle "playchess.com"]
[Source "ChessBase"]
[SourceQuality "1"]
[TimeControl "5400+30"]

1. e4 {[%emt 0:00:00]} e5 {[%emt 0:00:40]} 2. Nf3 {[%emt 0:00:08]} Nc6 {[%emt 0:01:52]} 3. Bb5 {[%emt 0:00:08]} a6 {[%emt 0:01:28]} 4. Ba4 {[%emt 0:00:08]} f5 {[%emt 0:02:08]} 5. Qe2 {[%emt 0:05:06]} Nf6 {[%emt 0:09:13]} 6. Nc3 {[%emt 0:01:06]} d6 {[%emt 0:05:29]} 7. O-O {[%emt 0:03:11]} fxe4 {[%emt 0:04:33]} 8. Nxe4 {[%emt 0:00:40]} Bd7 {[%emt 0:03:59]} 9. a3 {[%emt 0:06:03]} Qe7 {[%emt 0:09:21]} 10. d3 {[%emt 0:02:08]} O-O-O {[%emt 0:03:06]} 11. b4 {[%emt 0:00:57]} Nxe4 {[%emt 0:09:31]} 12. dxe4 {[%emt 0:01:35]} h6 {[%emt 0:03:23]} 13. c4 {[%emt 0:00:47]} Nd4 {[%emt 0:01:49]} 14. Nxd4 {[%emt 0:01:34]} Bxa4 {[%emt 0:02:05]} 15. Nf5 {[%emt 0:01:18]} Qe8 {[%emt 0:01:48]} 16. Bd2 {[%emt 0:00:41]} Bd7 {[%emt 0:00:54]} 17. Ne3 {[%emt 0:01:11]} Bc6 {[%emt 0:06:09]} 18. f3 {[%emt 0:00:41]} Be7 {[%emt 0:03:56]} 19. Rfb1 {[%emt 0:00:30]} b6 {[%emt 0:01:48]} 20. b5 {[%emt 0:01:27]} Bb7 {[%emt 0:01:34]} 21. bxa6 {[%emt 0:00:30]} Bxa6 {[%emt 0:00:14]} 22. a4 {[%emt 0:00:22]} Kd7 {[%emt 0:01:12]} 23. a5 {[%emt 0:00:36]} bxa5 {[%emt 0:00:22]} 24. Bxa5 {[%emt 0:00:28]} Ra8 {[%emt 0:01:42]} 25. Nd5 {[%emt 0:00:22]} Bd8 {[%emt 0:00:43]} 26. Qc2 {[%emt 0:01:32]} Bc8 {[%emt 0:03:08]} 27. c5 {[%emt 0:04:14]} c6 {[%emt 0:01:16]} 28. Bxd8 {[%emt 0:03:38]} Rxa1 {[%emt 0:00:27]} 29. Nb6+ {[%emt 0:01:01]} Kxd8 {[%emt 0:00:27]} 30. Rxa1 {[%emt 0:00:13]} Bb7 {[%emt 0:01:02]} 31. Qd2 {[%emt 0:01:26]} d5 {[%emt 0:00:33]} 32. exd5 {[%emt 0:03:14]} cxd5 {[%emt 0:00:14]} 33. Nxd5 {[%emt 0:00:47]} Qd7 {[%emt 0:01:14]} 34. Rd1 {[%emt 0:00:20]} Bc6 {[%emt 0:02:03]} 35. Qa5+ {[%emt 0:01:08]} 1-0

[Event "White Rook U14 Final 2019"]
[Site "Sochi"]
[Date "2019.06.09"]
[Round "8.35"]
[White "Urdin, Matvey"]
[Black "Abubekerov, Iliya"]
[Result "1-0"]
[ECO "A23"]
[WhiteElo "1515"]
[BlackElo "1199"]
[Annotator "NA"]
[PlyCount "151"]
[EventDate "2019.06.02"]
[EventCountry "RUS"]
[SourceTitle "playchess.com"]
[Source "ChessBase"]
[SourceQuality "1"]
[TimeControl "5400+30"]

1. c4 {[%emt 0:00:00]} e5 {[%emt 0:00:00]} 2. Nc3 {[%emt 0:00:07]} Nf6 {[%emt 0:00:00]} 3. g3 {[%emt 0:00:08]} Bb4 {[%emt 0:00:08]} 4. Bg2 {[%emt 0:00:09]} c6 {[%emt 0:00:08]} 5. e4 {[%emt 0:04:41]} d6 {[%emt 0:00:24]} 6. Nge2 {[%emt 0:04:33]} Be6 {[%emt 0:00:08]} 7. d3 {[%emt 0:00:48]} d5 {[%emt 0:00:56]} 8. cxd5 {[%emt 0:10:51]} cxd5 {[%emt 0:00:57]} 9. d4 {[%emt 0:02:16]} Bxc3+ {[%emt 0:04:24]} 10. bxc3 {[%emt 0:08:32]} Nbd7 {[%emt 0:05:34]} 11. dxe5 {[%emt 0:00:04]} Nxe5 {[%emt 0:04:41]} 12. f4 {[%emt 0:05:57]} Nc4 {[%emt 0:00:00]} 13. f5 {[%emt 0:05:32]} Bd7 {[%emt 0:00:03]} 14. exd5 {[%emt 0:08:20]} O-O {[%emt 0:01:11]} 15. O-O {[%emt 0:01:19]} Bb5 {[%emt 0:00:47]} 16. Nd4 {[%emt 0:01:58]} Ba6 {[%emt 0:00:23]} 17. Nc2 {[%emt 0:07:41]} Ne5 {[%emt 0:12:33]} 18. Rf4 {[%emt 0:00:00]} Nc4 {[%emt 0:03:01]} 19. Nb4 {[%emt 0:00:00]} Qb6+ {[%emt 0:12:07]} 20. Qd4 {[%emt 0:00:27]} Rac8 {[%emt 0:01:29]} 21. Qxb6 {[%emt 0:00:00]} Nxb6 {[%emt 0:00:00]} 22. Nxa6 {[%emt 0:00:22]} bxa6 {[%emt 0:00:02]} 23. Rd4 {[%emt 0:00:01]} Rxc3 {[%emt 0:00:15]} 24. Bg5 {[%emt 0:00:01]} Nfd7 {[%emt 0:00:03]} 25. Rad1 {[%emt 0:00:02]} Re8 {[%emt 0:00:06]} 26. d6 {[%emt 0:00:00]} h6 {[%emt 0:00:21]} 27. Bf4 {[%emt 0:00:27]} Nf6 {[%emt 0:01:54]} 28. d7 {[%emt 0:02:47]} Nfxd7 {[%emt 0:01:11]} 29. Rxd7 {[%emt 0:00:04]} Nxd7 {[%emt 0:00:27]} 30. Rxd7 {[%emt 0:00:15]} Re1+ {[%emt 0:00:02]} 31. Kf2 {[%emt 0:00:07]} Rb1 {[%emt 0:00:00]} 32. Rd2 {[%emt 0:06:04]} Rc8 {[%emt 0:00:57]} 33. Be4 {[%emt 0:05:20]} Rb4 {[%emt 0:02:31]} 34. Re2 {[%emt 0:00:47]} a5 {[%emt 0:01:24]} 35. f6 {[%emt 0:02:14]} g5 {[%emt 0:00:39]} 36. Bd2 {[%emt 0:00:33]} Rb6 {[%emt 0:00:17]} 37. Bxa5 {[%emt 0:00:44]} Rxf6+ {[%emt 0:01:08]} 38. Kg2 {[%emt 0:00:06]} Re6 {[%emt 0:00:00]} 39. Re1 {[%emt 0:01:58]} Rce8 {[%emt 0:01:32]} 40. Kf3 {[%emt 0:01:52]} Kg7 {[%emt 0:00:37]} 41. Bc3+ {[%emt 0:04:24]} f6 {[%emt 0:00:14]} 42. g4 {[%emt 0:00:14]} h5 {[%emt 0:00:33]} 43. h3 {[%emt 0:04:21]} h4 {[%emt 0:00:31]} 44. Re2 {[%emt 0:00:14]} Ra6 {[%emt 0:01:03]} 45. Bd5 {[%emt 0:02:59]} Rxe2 {[%emt 0:01:00]} 46. Kxe2 {[%emt 0:01:22]} Ra4 {[%emt 0:00:04]} 47. Bb3 {[%emt 0:00:30]} Re4+ {[%emt 0:00:49]} 48. Kf3 {[%emt 0:00:31]} Rf4+ {[%emt 0:00:53]} 49. Ke3 {[%emt 0:00:43]} Rf1 {[%emt 0:00:07]} 50. Bd5 {[%emt 0:02:01]} Rd1 {[%emt 0:00:08]} 51. Bd2 {[%emt 0:01:29]} Rb1 {[%emt 0:00:10]} 52. a4 {[%emt 0:00:14]} Rb6 {[%emt 0:00:40]} 53. Kd4 {[%emt 0:00:25]} a5 {[%emt 0:00:54]} 54. Bc4 {[%emt 0:02:19]} Rb1 {[%emt 0:00:49]} 55. Bd5 {[%emt 0:00:25]} Ra1 {[%emt 0:01:06]} 56. Bc6 {[%emt 0:00:09]} Ra3 {[%emt 0:00:41]} 57. Bc3 {[%emt 0:00:07]} Kf7 {[%emt 0:00:24]} 58. Bxa5 {[%emt 0:01:50]} Rxh3 {[%emt 0:00:09]} 59. Bd5+ {[%emt 0:00:03]} Kg7 {[%emt 0:00:13]} 60. Bc7 {[%emt 0:00:12]} Ra3 {[%emt 0:00:50]} 61. a5 {[%emt 0:00:15]} f5 {[%emt 0:01:28]} 62. gxf5 {[%emt 0:00:16]} Ra4+ {[%emt 0:01:00]} 63. Ke5 {[%emt 0:00:00]} h3 {[%emt 0:01:21]} 64. f6+ {[%emt 0:00:10]} Kg6 {[%emt 0:00:06]} 65. Ke6 {[%emt 0:00:41]} Ra1 {[%emt 0:00:59]} 66. f7 {[%emt 0:00:47]} Re1+ {[%emt 0:01:12]} 67. Be5 {[%emt 0:00:31]} Rf1 {[%emt 0:00:24]} 68. Be4+ {[%emt 0:00:17]} Kh6 {[%emt 0:00:05]} 69. Ke7 {[%emt 0:00:11]} Rxf7+ {[%emt 0:00:30]} 70. Kxf7 {[%emt 0:00:05]} g4 {[%emt 0:00:08]} 71. a6 {[%emt 0:00:08]} Kh5 {[%emt 0:00:06]} 72. Bg3 {[%emt 0:00:07]} Kg5 {[%emt 0:00:22]} 73. a7 {[%emt 0:00:10]} Kh5 {[%emt 0:00:03]} 74. a8=Q {[%emt 0:00:12]} Kg5 {[%emt 0:00:05]} 75. Qg8+ {[%emt 0:00:17]} Kh6 {[%emt 0:00:05]} 76. Qg6# {[%emt 0:00:05]} 1-0

[Event "White Rook U14 Final 2019"]
[Site "Sochi"]
[Date "2019.06.09"]
[Round "8.36"]
[White "Kulish, Glafira"]
[Black "Chavkina, Anastasia"]
[Result "0-1"]
[ECO "D10"]
[WhiteElo "1379"]
[BlackElo "1214"]
[Annotator "NA"]
[PlyCount "50"]
[EventDate "2019.06.02"]
[EventCountry "RUS"]
[SourceTitle "playchess.com"]
[Source "ChessBase"]
[SourceQuality "1"]
[TimeControl "5400+30"]

1. d4 {[%emt 0:00:00]} d5 {[%emt 0:04:09]} 2. c4 {[%emt 0:00:24]} c6 {[%emt 0:00:15]} 3. Qc2 {[%emt 0:08:34]} Nf6 {[%emt 0:02:49]} 4. Bf4 {[%emt 0:03:37]} e6 {[%emt 0:03:05]} 5. e3 {[%emt 0:00:08]} Bd6 {[%emt 0:01:44]} 6. Bxd6 {[%emt 0:00:24]} Qxd6 {[%emt 0:00:08]} 7. Nc3 {[%emt 0:00:25]} Nbd7 {[%emt 0:09:36]} 8. c5 {[%emt 0:07:37]} Qe7 {[%emt 0:02:16]} 9. Bd3 {[%emt 0:00:33]} O-O {[%emt 0:01:12]} 10. Nf3 {[%emt 0:02:10]} h6 {[%emt 0:03:20]} 11. O-O-O {[%emt 0:00:40]} b6 {[%emt 0:01:12]} 12. cxb6 {[%emt 0:05:54]} axb6 {[%emt 0:00:24]} 13. h3 {[%emt 0:04:28]} Ba6 {[%emt 0:05:05]} 14. g4 {[%emt 0:01:58]} Bxd3 {[%emt 0:00:39]} 15. Qxd3 {[%emt 0:00:08]} Nh7 {[%emt 0:00:23]} 16. h4 {[%emt 0:01:42]} g6 {[%emt 0:08:20]} 17. Ne2 {[%emt 0:02:44]} Rxa2 {[%emt 0:02:14]} 18. Nf4 {[%emt 0:00:24]} Ra1+ {[%emt 0:00:31]} 19. Kc2 {[%emt 0:00:07]} Rxd1 {[%emt 0:00:15]} 20. Kxd1 {[%emt 0:00:08]} Ra8 {[%emt 0:01:24]} 21. Kc2 {[%emt 0:00:31]} Nhf6 {[%emt 0:02:50]} 22. g5 {[%emt 0:03:14]} Ne4 {[%emt 0:00:21]} 23. Qf1 {[%emt 0:07:07]} h5 {[%emt 0:00:44]} 24. Ne5 {[%emt 0:04:06]} Nxe5 {[%emt 0:02:37]} 25. dxe5 {[%emt 0:00:07]} Qc5+ {[%emt 0:00:37]} 0-1

[Event "White Rook U14 Final 2019"]
[Site "Sochi"]
[Date "2019.06.10"]
[Round "9.1"]
[White "Putrenko, Kirill"]
[Black "Kurus, Artem"]
[Result "1/2-1/2"]
[ECO "D36"]
[WhiteElo "2010"]
[BlackElo "1769"]
[Annotator "NA"]
[PlyCount "67"]
[EventDate "2019.06.02"]
[EventCountry "RUS"]
[SourceTitle "playchess.com"]
[Source "ChessBase"]
[SourceQuality "1"]
[TimeControl "5400+30"]

1. d4 {[%emt 0:00:00]} d5 {[%emt 0:00:00]} 2. c4 {[%emt 0:00:00]} e6 {[%emt 0:00:00]} 3. Nc3 {[%emt 0:00:00]} Nf6 {[%emt 0:00:00]} 4. cxd5 {[%emt 0:00:00]} exd5 {[%emt 0:00:00]} 5. Bg5 {[%emt 0:00:09]} Be7 {[%emt 0:00:00]} 6. e3 {[%emt 0:00:09]} c6 {[%emt 0:00:00]} 7. Bd3 {[%emt 0:00:22]} Nbd7 {[%emt 0:00:20]} 8. Qc2 {[%emt 0:00:13]} Nh5 {[%emt 0:00:24]} 9. Bxe7 {[%emt 0:00:22]} Qxe7 {[%emt 0:00:00]} 10. Nge2 {[%emt 0:01:48]} g6 {[%emt 0:00:20]} 11. O-O-O {[%emt 0:00:58]} Nb6 {[%emt 0:24:10]} 12. h3 {[%emt 0:15:12]} Ng7 {[%emt 0:00:00]} 13. g4 {[%emt 0:00:00]} Be6 {[%emt 0:00:00]} 14. Nf4 {[%emt 0:00:00]} O-O-O {[%emt 0:00:00]} 15. Kb1 {[%emt 0:00:00]} Kb8 {[%emt 0:02:04]} 16. Qb3 {[%emt 0:01:42]} h5 {[%emt 0:00:23]} 17. f3 {[%emt 0:03:01]} Bc8 {[%emt 0:35:20]} 18. Rhe1 {[%emt 0:21:20]} hxg4 {[%emt 0:00:00]} 19. hxg4 {[%emt 0:00:00]} g5 {[%emt 0:00:00]} 20. Ng2 {[%emt 0:00:00]} Rh2 {[%emt 0:00:00]} 21. Rd2 {[%emt 0:00:00]} f5 {[%emt 0:00:00]} 22. gxf5 {[%emt 0:00:00]} Bxf5 {[%emt 0:00:00]} 23. e4 {[%emt 0:00:00]} dxe4 {[%emt 0:00:00]} 24. fxe4 {[%emt 0:00:00]} Bh3 {[%emt 0:03:32]} 25. Bf1 {[%emt 0:08:17]} Bxg2 {[%emt 0:04:55]} 26. Bxg2 {[%emt 0:01:02]} Ne6 {[%emt 0:00:56]} 27. Red1 {[%emt 0:01:21]} Nxd4 {[%emt 0:01:53]} 28. Rxd4 {[%emt 0:17:13]} Rxd4 {[%emt 0:09:33]} 29. Rxd4 {[%emt 0:00:55]} Rxg2 {[%emt 0:00:00]} 30. Qg8+ {[%emt 0:00:30]} Nc8 {[%emt 0:00:27]} 31. Rd8 {[%emt 0:03:27]} Rg1+ {[%emt 0:03:11]} 32. Kc2 {[%emt 0:01:28]} Rg2+ {[%emt 0:00:36]} 33. Kb1 {[%emt 0:01:05]} Rg1+ {[%emt 0:00:06]} 34. Kc2 {[%emt 0:00:00]} 1/2-1/2